bitfinex/quotes_ETHUSD_20230118
["timestamp","ask_amount","ask_price","bid_price","bid_amount"]
[1674078214276,4.7093985,1531.4,1531.3,0.99420448]
[1674078214486,4.70897793,1531.4,1531.2,17.49292482]
[1674078214695,0.68319415,1531.3,1531.2,17.49292482]
[1674078215004,4.77497793,1531.4,1531.2,18.49292482]
[1674078215221,4.70897793,1531.4,1531.2,18.49292482]
[1674078215424,0.68319415,1531.3,1531.2,18.49292482]
[1674078215766,0.68319415,1531.3,1531.2,22.71447595]
[1674078215974,0.68319415,1531.3,1531.2,21.71447595]
[1674078216565,1.70897793,1531.3,1531.2,21.71447595]
[1674078216776,1.02578378,1531.3,1531.2,17.49292482]
[1674078217520,2.3923701,1531.3,1531.2,17.49292482]
[1674078217953,1.02578378,1531.3,1531.2,17.49292482]
[1674078218575,14.42736632,1531.3,1531.2,17.49292482]
[1674078218801,14.49336632,1531.3,1531.2,17.49292482]
[1674078219412,16.20302975,1531.3,1531.2,17.49292482]
[1674078221043,22.73341975,1531.3,1531.2,17.49292482]
[1674078221201,22.73341975,1531.3,1531.2,1.87922482]
[1674078221405,22.73341975,1531.3,1531.2,1.81322482]
[1674078222564,21.02375632,1531.3,1531.2,1.81322482]
[1674078223416,22.73341975,1531.3,1531.2,1.81322482]
[1674078223626,21.36683343,1531.3,1531.2,1.81322482]
[1674078223870,14.83644343,1531.3,1531.2,1.81322482]
[1674078224086,16.20525976,1531.3,1531.2,1.81322482]
[1674078224886,9.67486976,1531.3,1531.2,1.81322482]
[1674078225116,2.4615768,1531.3,1531.2,1.9945473]
[1674078225329,1.02676047,1531.3,1531.2,1.9945473]
[1674078225536,1.71123795,1531.3,1531.2,2.9945473]
[1674078226340,1.02676047,1531.3,1531.2,1.9945473]
[1674078226868,2.3955768,1531.3,1531.2,1.81322482]
[1674078227611,1.36881633,1531.3,1531.2,1.81322482]
[1674078228708,7.89920633,1531.3,1531.2,1.81322482]
[1674078229027,21.36683343,1531.3,1531.2,1.81020348]
[1674078229255,14.83644343,1531.3,1531.2,1.81020348]
[1674078230887,14.83274364,1531.3,1531.2,1.81020348]
[1674078236110,14.83521879,1531.3,1531.2,1.81020348]
[1674078237898,8.30482879,1531.3,1531.2,1.81020348]
[1674078238135,2.01805686,1531.8,1531.2,1.81020348]
[1674078238421,2.01805686,1531.8,1531.2,6.53079]
[1674078238422,1.02932566,1531.3,1531.2,6.53079]
[1674078238634,1.02932566,1531.3,1531.2,37.27843]
[1674078238635,1.02732566,1531.3,1531.2,37.27843]
[1674078239263,1.02732566,1531.3,1531.2,39.08863348]
[1674078240050,1.71222022,1531.3,1531.2,39.08863348]
[1674078240261,0.68489456,1531.3,1531.2,43.75060483]
[1674078240715,1.36976755,1531.4,1531.3,1.0]
[1674078240716,0.002,1531.4,1531.3,1.0]
[1674078240945,5.49311368,1531.9,1531.3,32.91634]
[1674078240946,5.46911368,1531.9,1531.3,32.91634]
[1674078241101,5.46911368,1531.9,1531.5,19.58802]
[1674078241311,0.20591368,1531.9,1531.5,19.65402]
[1674078241665,0.13991368,1531.9,1531.5,19.65402]
[1674078241930,13.19585368,1531.9,1531.8,1.81020348]
[1674078242092,16.26185368,1531.9,1531.8,1.81020348]
[1674078243261,18.65783084,1531.9,1531.8,1.81020348]
[1674078243620,16.26185368,1531.9,1531.8,1.81020348]
[1674078244626,30.01267843,1531.9,1531.6,1.87620348]
[1674078244831,15.11061761,1531.7,1531.6,1.81020348]
[1674078245000,15.17661761,1531.7,1531.6,1.81020348]
[1674078245937,21.70530761,1531.7,1531.6,1.81020348]
[1674078246991,19.65207,1531.7,1531.5,1.81020348]
[1674078247248,5.05337648,1531.6,1531.5,1.81020348]
[1674078247461,18.17759648,1531.6,1531.5,1.81020348]
[1674078249418,6.14574023,1531.6,1531.5,1.81020348]
[1674078249632,2.46130791,1531.6,1531.5,1.81020348]
[1674078249869,1.02653433,1531.6,1531.5,14.86928348]
[1674078250037,1.02653433,1531.6,1531.5,10.70573883]
[1674078250669,1.02653433,1531.6,1531.5,17.23527883]
[1674078250918,1.71065238,1531.6,1531.5,17.23527883]
[1674078251087,1.71065238,1531.6,1531.5,18.23527883]
[1674078251291,1.71065238,1531.6,1531.5,24.76481883]
[1674078251292,0.68411805,1531.6,1531.5,24.76481883]
[1674078252103,1.71065238,1531.7,1531.5,24.76481883]
[1674078252446,0.68411805,1531.7,1531.5,24.76481883]
[1674078252970,0.68411805,1531.7,1531.6,1.0]
[1674078253177,0.68411805,1531.8,1531.6,25.41407759]
[1674078253409,1.02653433,1531.8,1531.7,25.47268124]
[1674078253660,0.6833672,1531.8,1531.7,24.00368124]
[1674078255718,1.84981521,1531.9,1531.7,24.00368124]
[1674078255933,1.8494607,1531.9,1531.8,3.40036812]
[1674078256139,1.8494607,1531.9,1531.8,9.92862812]
[1674078256348,1.16644801,1531.9,1531.8,9.99462812]
[1674078256558,1.84946853,1531.9,1531.8,9.99462812]
[1674078258302,0.20396508,1532.0,1531.9,2.19746281]
[1674078258626,0.13796508,1532.0,1531.9,29.06893388]
[1674078258940,6.508e-05,1532.0,1531.9,40.02189613]
[1674078259167,0.15010498,1532.1,1531.9,40.02189613]
[1674078259489,0.15010498,1532.1,1532.0,28.4111672]
[1674078259670,0.15010498,1532.1,1532.0,28.4771672]
[1674078260614,0.15010498,1532.1,1532.0,28.9667672]
[1674078260825,0.15010498,1532.1,1532.0,25.67501961]
[1674078261155,0.15010498,1532.1,1532.0,17.12300961]
[1674078261455,0.15010498,1532.1,1532.0,10.59559961]
[1674078263189,16.43461983,1532.1,1532.0,0.066]
[1674078263457,15.81759931,1532.1,1531.9,1.81020348]
[1674078263764,1.70819051,1532.0,1531.9,1.81020348]
[1674078263978,8.23560051,1532.0,1531.9,1.81020348]
[1674078264189,8.30160051,1532.0,1531.9,1.81020348]
[1674078264356,7.27506618,1532.0,1531.9,1.81020348]
[1674078266392,0.064,1532.0,1531.9,1.81020348]
[1674078266600,6.52721,1532.1,1531.9,1.81020348]
[1674078266816,0.066,1532.1,1531.9,1.81020348]
[1674078266976,16.00668305,1532.2,1531.9,1.81020348]
[1674078267186,12.77167064,1532.2,1531.9,1.81020348]
[1674078268343,4.36334305,1532.1,1531.9,1.81020348]
[1674078269595,18.94434305,1532.1,1531.9,1.81020348]
[1674078269804,18.94434305,1532.1,1531.6,23.71926]
[1674078269805,2.89334305,1532.0,1531.7,1.87620348]
[1674078270072,2.89334305,1532.0,1531.7,1.81020348]
[1674078270073,11.06284,1531.9,1531.7,1.81020348]
[1674078270381,11.12884,1531.9,1531.7,1.81020348]
[1674078270798,17.65668,1531.9,1531.7,1.81020348]
[1674078271836,9.59384,1531.9,1531.7,1.81020348]
[1674078276062,10.61740258,1531.9,1531.7,1.81020348]
[1674078276429,11.29987434,1531.9,1531.7,1.81020348]
[1674078276645,0.68247176,1531.8,1531.7,1.81020348]
[1674078279213,11.29987434,1531.9,1531.7,1.81020348]
[1674078279384,0.68247176,1531.8,1531.7,1.81020348]
[1674078281423,0.68247176,1531.8,1531.7,9.46429196]
[1674078281575,0.68247176,1531.9,1531.7,22.58767196]
[1674078281784,1.70603434,1532.0,1531.7,22.58767196]
[1674078282035,1.70603434,1532.0,1531.8,9.7868072]
[1674078282261,0.68247176,1532.0,1531.8,9.8528072]
[1674078283044,0.68247176,1532.0,1531.8,16.3810672]
[1674078284359,0.68247176,1532.0,1531.9,8.33804348]
[1674078284609,0.68247176,1532.0,1531.9,10.87595455]
[1674078284743,0.68247176,1532.0,1531.9,11.87595455]
[1674078285631,0.68247176,1532.0,1531.9,10.87595455]
[1674078285943,0.68247176,1532.0,1531.9,11.87595455]
[1674078286152,0.68247176,1532.0,1531.9,10.87595455]
[1674078287483,1.02356258,1532.0,1531.9,10.87595455]
[1674078287795,1.02356258,1532.0,1531.9,4.34811455]
[1674078288000,1.70734798,1532.0,1531.9,4.28211455]
[1674078288559,1.70734798,1532.0,1531.9,4.27917632]
[1674078289089,1.70734798,1532.0,1531.9,10.80701632]
[1674078289246,1.70734798,1532.0,1531.9,10.87301632]
[1674078289672,1.02356258,1532.0,1531.9,10.87301632]
[1674078290095,1.70751475,1532.0,1531.9,10.87301632]
[1674078290306,1.70751369,1532.0,1531.9,10.87301632]
[1674078290530,1.02356258,1532.0,1531.9,10.87301632]
[1674078290764,1.70751529,1532.0,1531.9,10.87301632]
[1674078292059,1.02356258,1532.0,1531.9,10.87301632]
[1674078292193,1.70759544,1532.0,1531.9,10.87301632]
[1674078292399,1.02356258,1532.0,1531.9,10.87301632]
[1674078292610,1.7075859,1532.0,1531.9,10.87301632]
[1674078293290,1.7075859,1532.0,1531.9,11.87301632]
[1674078293451,1.7075859,1532.0,1531.9,10.87301632]
[1674078294414,1.7075859,1532.0,1531.9,11.87301632]
[1674078294958,0.68402332,1532.0,1531.9,18.40085632]
[1674078296501,0.68402332,1532.0,1531.9,24.92869632]
[1674078296861,1.02356258,1532.1,1531.9,24.92869632]
[1674078296862,0.68402332,1532.1,1531.9,24.92869632]
[1674078297076,0.68402332,1532.1,1532.0,23.07509963]
[1674078297232,0.68402332,1532.1,1532.0,23.14109963]
[1674078297440,0.68402332,1532.2,1532.0,23.14109963]
[1674078297646,0.68402332,1532.2,1532.1,4.12137521]
[1674078297921,1.7075859,1532.3,1532.1,25.23031521]
[1674078298142,1.7075859,1532.3,1532.1,28.5880628]
[1674078298284,0.68402332,1532.3,1532.1,28.5880628]
[1674078298651,0.68402332,1532.3,1532.2,3.85880628]
[1674078298971,0.68402332,1532.3,1532.2,23.43848628]
[1674078299281,0.68402332,1532.3,1532.2,23.50448628]
[1674078300224,0.68402332,1532.4,1532.2,28.32523387]
[1674078300442,0.68402332,1532.4,1532.3,22.41091339]
[1674078300613,0.68402332,1532.4,1532.3,22.47691339]
[1674078301489,1.7075859,1532.4,1532.3,22.47691339]
[1674078301703,1.02356258,1532.4,1532.3,22.47691339]
[1674078302264,2.38690563,1532.4,1532.3,11.23191864]
[1674078302438,1.36334305,1532.4,1532.3,11.23191864]
[1674078303364,1.36334305,1532.4,1532.3,8.39939525]
[1674078304540,1.36534305,1532.4,1532.3,8.39739525]
[1674078304711,1.36334305,1532.4,1532.3,1.87326525]
[1674078304921,1.36334305,1532.4,1532.3,1.80726525]
[1674078305905,3.06859344,1532.4,1532.3,1.80726525]
[1674078306060,1.36334305,1532.4,1532.3,1.80726525]
[1674078306273,1.36334305,1532.4,1532.3,5.3251884]
[1674078306483,1.36334305,1532.4,1532.3,5.3911884]
[1674078306484,2.38793853,1532.4,1532.3,5.3911884]
[1674078306731,2.38490501,1532.4,1532.3,5.3911884]
[1674078306958,1.02459548,1532.4,1532.3,5.3911884]
[1674078307493,14.75623039,1532.5,1532.3,1.87326525]
[1674078307661,14.82223039,1532.5,1532.3,1.80726525]
[1674078308168,21.34773039,1532.5,1532.3,1.80726525]
[1674078308381,1.70525039,1532.4,1532.3,1.80726525]
[1674078308622,4.70525039,1532.4,1532.2,17.4605]
[1674078308819,17.75714039,1532.4,1532.2,17.4605]
[1674078309044,17.82314039,1532.4,1532.2,17.4605]
[1674078309213,24.34922039,1532.4,1532.2,0.066]
[1674078309421,24.34922039,1532.4,1532.1,1.80726525]
[1674078309701,1.02456722,1532.2,1532.1,1.80726525]
[1674078309928,1.0245956,1532.2,1532.1,1.80726525]
[1674078310065,14.82398039,1532.3,1532.1,1.80726525]
[1674078310742,1.02459079,1532.2,1532.1,1.80726525]
[1674078310905,14.75837039,1532.2,1532.1,1.80726525]
[1674078311120,19.34937039,1532.2,1532.0,1.80726525]
[1674078311327,1.02475092,1532.1,1532.0,1.80726525]
[1674078311534,1.02475092,1532.1,1531.8,17.2786]
[1674078311535,13.05396,1532.1,1531.8,17.2786]
[1674078311740,8.23567625,1532.0,1531.9,1.80726525]
[1674078311955,8.30167625,1532.0,1531.9,1.80726525]
[1674078312432,7.61836975,1532.0,1531.9,1.80726525]
[1674078313221,8.30171533,1532.0,1531.9,1.80726525]
[1674078313690,8.30173445,1532.0,1531.9,1.80726525]
[1674078313850,7.61836975,1532.0,1531.9,1.80726525]
[1674078315169,7.61836975,1532.0,1531.8,17.2786]
[1674078315316,0.68341437,1531.9,1531.8,17.2786]
[1674078316052,0.68341437,1531.9,1531.8,0.066]
[1674078316264,0.68341437,1531.9,1531.7,13.10596525]
[1674078316637,0.68341437,1531.9,1531.7,15.72232578]
[1674078317213,0.68341437,1531.8,1531.7,15.72232578]
[1674078317428,1.02495975,1531.9,1531.7,15.72232578]
[1674078317429,1.70837412,1531.9,1531.7,15.72232578]
[1674078317827,1.70837412,1531.9,1531.7,4.48962578]
[1674078317941,0.68341437,1531.8,1531.7,1.80726525]
[1674078318418,8.23663412,1531.8,1531.7,1.80726525]
[1674078318630,8.30263412,1531.8,1531.7,1.80726525]
[1674078318841,8.3027369,1531.8,1531.7,1.80726525]
[1674078319418,14.14747975,1531.8,1531.7,1.80726525]
[1674078319629,14.8310453,1531.8,1531.7,1.80726525]
[1674078319839,14.14747975,1531.8,1531.7,1.80726525]
[1674078320190,14.14747975,1531.8,1531.6,0.066]
[1674078320191,29.06428375,1531.8,1531.6,0.066]
[1674078320405,29.06428375,1531.8,1531.5,1.91616766]
[1674078320406,27.02403085,1531.7,1531.5,1.91616766]
[1674078320719,22.58733,1531.6,1531.5,1.91616766]
[1674078320887,23.33697868,1531.6,1531.5,1.91616766]
[1674078321308,23.33697868,1531.6,1531.5,0.10890241]
[1674078321521,25.2137871,1531.6,1531.5,0.10890241]
[1674078321834,25.55508616,1531.6,1531.5,0.10890241]
[1674078322252,29.07683375,1531.6,1531.5,0.10890241]
[1674078322710,28.73434763,1531.6,1531.5,0.10890241]
[1674078323514,23.56607778,1531.6,1531.5,0.10890241]
[1674078323725,23.33607778,1531.6,1531.5,0.10890241]
[1674078324806,22.65333,1531.6,1531.5,0.10890241]
[1674078328086,22.65333,1531.6,1531.5,0.10628559]
[1674078330414,23.33607778,1531.6,1531.5,0.10628559]
[1674078330564,23.56607778,1531.6,1531.5,0.10628559]
[1674078331445,25.09007778,1531.6,1531.5,0.10628559]
[1674078331774,29.40609541,1531.6,1531.5,0.10628559]
[1674078332811,28.38182537,1531.6,1531.5,0.10628559]
[1674078335750,27.69907759,1531.6,1531.5,0.10628559]
[1674078337605,28.38182537,1531.6,1531.5,0.10628559]
[1674078338455,29.40609541,1531.6,1531.5,0.10628559]
[1674078338700,28.38182537,1531.6,1531.5,0.10628559]
[1674078339107,29.40609541,1531.6,1531.5,0.10628559]
[1674078339339,29.40472349,1531.6,1531.5,0.10628559]
[1674078339554,28.72334763,1531.6,1531.5,0.10628559]
[1674078340398,29.40497942,1531.6,1531.5,0.10628559]
[1674078340711,28.72334763,1531.6,1531.5,0.10628559]
[1674078342180,28.38060879,1531.6,1531.5,0.10628559]
[1674078342336,27.69907759,1531.6,1531.5,0.10628559]
[1674078344113,28.38060879,1531.6,1531.5,0.10628559]
[1674078344649,29.40487883,1531.6,1531.5,0.10628559]
[1674078346375,28.38060879,1531.6,1531.5,0.10628559]
[1674078346581,29.40487883,1531.6,1531.5,0.10628559]
[1674078346767,30.09010379,1531.6,1531.5,0.10628559]
[1674078347184,28.72334763,1531.6,1531.5,0.10628559]
[1674078348243,30.09010379,1531.6,1531.5,0.10628559]
[1674078348696,28.72334763,1531.6,1531.5,0.10628559]
[1674078348937,29.06583375,1531.6,1531.5,0.10628559]
[1674078350023,29.06583375,1531.6,1531.5,0.10372684]
[1674078350560,29.40432798,1531.6,1531.5,0.10372684]
[1674078350783,33.15407759,1531.6,1531.5,0.10372684]
[1674078351510,34.8623812,1531.6,1531.5,0.10372684]
[1674078351745,34.86237287,1531.6,1531.5,0.10372684]
[1674078352183,33.15407759,1531.6,1531.5,0.10372684]
[1674078352792,35.1998747,1531.6,1531.5,0.10372684]
[1674078353407,33.15407759,1531.6,1531.5,0.10372684]
[1674078354689,35.1998747,1531.6,1531.5,0.10372684]
[1674078357275,29.5148747,1531.6,1531.5,0.10372684]
[1674078357489,27.46907759,1531.6,1531.5,0.10372684]
[1674078358574,29.5148747,1531.6,1531.5,0.10372684]
[1674078358788,29.7448747,1531.6,1531.5,0.10372684]
[1674078360055,28.2208747,1531.6,1531.5,0.10372684]
[1674078360441,29.7488747,1531.6,1531.5,0.10372684]
[1674078360844,32.25981932,1531.6,1531.5,0.10372684]
[1674078361082,34.64643716,1531.6,1531.5,0.08920431]
[1674078361309,34.64643716,1531.6,1531.5,4.31e-06]
[1674078361493,26.11988,1531.4,1531.3,0.06319501]
[1674078361717,36.28935032,1531.4,1531.3,0.06319501]
[1674078365160,34.23562759,1531.4,1531.3,0.06319501]
[1674078366249,35.94630377,1531.4,1531.3,0.06319501]
[1674078366785,34.23562759,1531.4,1531.3,0.06319501]
[1674078367167,35.94656938,1531.4,1531.3,0.06319501]
[1674078367378,34.23562759,1531.4,1531.3,0.06319501]
[1674078370814,36.28935032,1531.4,1531.3,0.06319501]
[1674078373316,35.94656388,1531.4,1531.3,0.06319501]
[1674078375358,34.41856388,1531.4,1531.3,0.06319501]
[1674078375493,30.89681629,1531.4,1531.3,1.01019501]
[1674078375701,21.02462458,1531.4,1531.3,1.01019501]
[1674078375944,22.05111874,1531.4,1531.3,1.01019501]
[1674078376324,22.05111874,1531.4,1531.3,0.06319501]
[1674078376595,21.02462458,1531.4,1531.3,0.06319501]
[1674078377060,24.02462458,1531.4,1531.3,0.06319501]
[1674078377429,24.02462458,1531.4,1531.3,1.01019501]
[1674078377650,25.28129315,1531.4,1531.3,1.01019501]
[1674078377797,25.28129315,1531.4,1531.3,0.06319501]
[1674078378169,24.25462458,1531.4,1531.3,0.06319501]
[1674078378763,24.25462458,1531.4,1531.3,1.01019501]
[1674078379170,24.25462458,1531.4,1531.3,2.97687104]
[1674078379591,24.5969887,1531.4,1531.3,2.97687104]
[1674078379799,24.5969887,1531.4,1531.3,1.01019501]
[1674078380011,24.59497861,1531.4,1531.3,2.01019501]
[1674078380258,7.27839139,1531.4,1531.3,2.01019501]
[1674078381501,10.27839139,1531.4,1531.3,2.01019501]
[1674078381688,10.27839139,1531.4,1531.3,4.17687104]
[1674078383909,9.59395991,1531.4,1531.3,4.17687104]
[1674078384270,9.59395991,1531.4,1531.3,2.22987104]
[1674078384456,23.68054713,1531.4,1531.3,0.06319501]
[1674078384668,23.91054713,1531.4,1531.3,0.06319501]
[1674078386058,18.06473704,1531.4,1531.3,0.06319501]
[1674078386257,24.59470704,1531.4,1531.3,0.06319501]
[1674078387519,23.56805982,1531.4,1531.3,0.06319501]
[1674078388527,17.03808982,1531.4,1531.3,0.06319501]
[1674078390249,10.27811982,1531.4,1531.3,2.88217104]
[1674078390717,3.75015991,1531.4,1531.3,1.01019501]
[1674078390925,3.68415991,1531.4,1531.3,0.06319501]
[1674078391491,3.68415991,1531.4,1531.3,1.01019501]
[1674078391796,10.21412991,1531.4,1531.3,1.01019501]
[1674078391987,10.28012991,1531.4,1531.3,1.01019501]
[1674078392141,10.28012991,1531.4,1531.3,0.06319501]
[1674078393316,11.30677713,1531.4,1531.3,0.06319501]
[1674078393665,25.0512718,1531.4,1531.3,0.06319501]
[1674078393989,29.25730846,1531.4,1531.3,0.06319501]
[1674078394518,27.88859388,1531.4,1531.3,0.06319501]
[1674078395395,29.41759388,1531.4,1531.3,0.06319501]
[1674078395666,27.70665759,1531.4,1531.3,0.06319501]
[1674078395977,29.76038032,1531.4,1531.3,0.06319501]
[1674078397876,27.70665759,1531.4,1531.3,0.06319501]
[1674078398101,29.76038032,1531.4,1531.3,0.06319501]
[1674078398401,27.70665759,1531.4,1531.3,0.06319501]
[1674078398822,33.68038032,1531.4,1531.3,0.06319501]
[1674078399136,32.26339932,1531.4,1531.1,0.06319501]
[1674078399282,27.83326887,1531.2,1531.1,0.06319501]
[1674078399495,31.19101646,1531.2,1531.1,0.06319501]
[1674078399759,34.42101646,1531.2,1531.1,0.06319501]
[1674078402122,35.95601646,1531.2,1531.1,0.06319501]
[1674078402815,34.24602759,1531.2,1531.1,0.06319501]
[1674078403131,35.78102759,1531.2,1531.1,0.06319501]
[1674078403972,37.49048527,1531.2,1531.1,0.06319501]
[1674078404992,37.49020718,1531.2,1531.1,0.06319501]
[1674078405168,35.78102759,1531.2,1531.1,0.06319501]
[1674078405381,34.24602759,1531.2,1531.1,0.06319501]
[1674078406023,35.95520675,1531.2,1531.1,0.06319501]
[1674078406220,39.87520675,1531.2,1531.1,0.06319501]
[1674078409946,46.40602675,1531.2,1531.0,0.06319501]
[1674078410168,10.44822342,1531.1,1531.0,0.06319501]
[1674078410334,30.10797342,1531.1,1531.0,0.06319501]
[1674078411897,29.08311145,1531.1,1531.0,0.06319501]
[1674078413002,30.10765724,1531.1,1531.0,0.06319501]
[1674078413313,30.10765129,1531.1,1531.0,0.06319501]
[1674078413742,28.74103743,1531.1,1531.0,0.06319501]
[1674078414732,30.10748645,1531.1,1531.0,0.06319501]
[1674078415192,27.20587259,1531.1,1531.0,0.06319501]
[1674078415736,28.57248645,1531.1,1531.0,0.06319501]
[1674078417530,27.54811145,1531.1,1531.0,0.06319501]
[1674078417674,28.57239739,1531.1,1531.0,0.06319501]
[1674078417881,27.89067675,1531.1,1530.9,0.06319501]
[1674078418146,25.27690852,1531.0,1530.9,0.06319501]
[1674078418306,25.57290852,1531.0,1530.9,0.06319501]
[1674078418518,28.57290852,1531.0,1530.9,0.06319501]
[1674078419356,27.20710799,1531.0,1530.9,0.06319501]
[1674078420637,27.88985803,1531.0,1530.9,0.06319501]
[1674078420864,26.86550763,1531.0,1530.9,0.06319501]
[1674078425301,27.88985803,1531.0,1530.9,0.06319501]
[1674078425857,26.86550763,1531.0,1530.9,0.06319501]
[1674078426395,27.88985803,1531.0,1530.9,0.06319501]
[1674078427066,26.86550763,1531.0,1530.9,0.06319501]
[1674078428582,23.57376004,1531.0,1530.9,0.06319501]
[1674078428761,20.34376004,1531.0,1530.9,0.06319501]
[1674078428978,19.66101,1531.0,1530.9,0.25623821]
[1674078430272,24.3690828,1531.0,1530.9,0.25623821]
[1674078430488,24.02681053,1531.0,1530.9,0.06319501]
[1674078431181,25.0530708,1531.0,1530.9,0.06319501]
[1674078431390,23.68727027,1531.0,1530.9,0.06319501]
[1674078432226,24.02681053,1531.0,1530.9,0.06319501]
[1674078432905,4.09307602,1531.0,1530.9,0.25623821]
[1674078433218,14.42866053,1531.1,1530.9,0.25623821]
[1674078433219,1.10206711,1531.1,1530.9,2.28123821]
[1674078433371,0.68469109,1531.1,1531.0,3.34226525]
[1674078433585,0.68469109,1531.1,1531.0,4.4043256]
[1674078433849,0.68469109,1531.1,1531.0,4.8942256]
[1674078434012,0.68469109,1531.2,1531.0,11.4258956]
[1674078434224,0.68469109,1531.2,1531.1,3.16748956]
[1674078434643,0.68469109,1531.2,1531.1,4.16748956]
[1674078435268,0.68469109,1531.2,1531.1,3.16748956]
[1674078435481,7.21551109,1531.2,1531.1,2.67758956]
[1674078435744,7.28151109,1531.2,1531.1,2.67758956]
[1674078435949,7.28151109,1531.2,1531.1,1.535]
[1674078439124,0.75069109,1531.2,1531.1,1.535]
[1674078439346,13.81176109,1531.3,1531.1,1.535]
[1674078439494,13.81176109,1531.3,1531.2,0.1535]
[1674078440225,13.81176109,1531.3,1531.2,1.96076525]
[1674078441986,0.75069109,1531.3,1531.2,1.96076525]
[1674078442138,0.68469109,1531.3,1531.2,1.96076525]
[1674078442362,7.62169457,1531.4,1531.2,5.03076525]
[1674078442363,0.066,1531.4,1531.2,5.03076525]
[1674078442698,1.71036566,1531.5,1531.3,9.79627653]
[1674078442699,0.68469109,1531.5,1531.3,9.79627653]
[1674078442850,0.68469109,1531.5,1531.4,2.51162765]
[1674078443064,1.71036566,1531.6,1531.4,4.3188929]
[1674078443290,1.71036566,1531.6,1531.5,1.535]
[1674078443497,0.68469109,1531.6,1531.5,1.535]
[1674078443710,1.73916566,1531.7,1531.5,8.60332929]
[1674078443954,0.68469109,1531.7,1531.6,1.535]
[1674078444362,0.68469109,1531.7,1531.6,2.535]
[1674078444557,0.68469109,1531.7,1531.6,6.11535218]
[1674078444768,0.68469109,1531.7,1531.6,5.18135218]
[1674078445480,7.55436457,1531.7,1531.6,1.87326525]
[1674078445726,23.98067053,1531.7,1531.6,1.80726525]
[1674078447790,23.98067053,1531.7,1531.4,12.8844]
[1674078448060,4.70616155,1531.6,1531.4,14.27084]
[1674078448228,6.52954,1531.5,1531.4,12.8844]
[1674078448444,6.55834,1531.5,1531.4,3.40726525]
[1674078448645,6.55834,1531.5,1531.4,3.34126525]
[1674078449741,13.08788,1531.5,1531.4,3.34126525]
[1674078450122,13.08788,1531.5,1531.4,1.80726525]
[1674078450565,34.61742,1531.5,1531.4,1.80726525]
[1674078451000,28.08788,1531.5,1531.4,1.80726525]
[1674078454213,15.0288,1531.5,1531.4,2.08799178]
[1674078455111,15.0288,1531.5,1531.4,10.15196178]
[1674078455260,15.0288,1531.5,1531.4,16.74793178]
[1674078455610,15.0288,1531.5,1531.4,23.27790178]
[1674078458881,15.0288,1531.5,1531.4,26.56964937]
[1674078464572,15.0288,1531.5,1531.4,28.10464937]
[1674078464898,14.41435518,1531.5,1531.4,28.7413911]
[1674078465472,14.41435518,1531.5,1531.4,33.7413911]
[1674078466716,9.31143245,1531.5,1531.4,40.6163911]
[1674078466939,7.98485973,1531.5,1531.4,41.1061911]
[1674078467248,0.13304423,1531.8,1531.6,6.875]
[1674078467464,0.13304423,1531.8,1531.7,24.40681759]
[1674078467674,0.13304423,1531.8,1531.7,24.47281759]
[1674078468395,0.13304423,1531.8,1531.7,26.28008284]
[1674078474751,0.13304423,1531.8,1531.7,33.79182457]
[1674078474970,0.13304423,1531.8,1531.7,39.40630703]
[1674078477763,0.13304423,1531.8,1531.7,44.40630703]
[1674078478983,0.13304423,1531.8,1531.7,36.00230703]
[1674078479126,0.13304423,1531.8,1531.7,19.93064525]
[1674078479332,0.13304423,1531.8,1531.7,6.87326525]
[1674078479545,0.13304423,1531.8,1531.7,1.87326525]
[1674078479804,0.13304423,1531.8,1531.7,1.80726525]
[1674078480916,0.13304423,1531.8,1531.5,1.38446525]
[1674078480917,27.41173644,1531.8,1531.5,1.38446525]
[1674078481132,1.17216462,1531.7,1531.6,0.066]
[1674078481355,15.69522869,1531.7,1531.6,0.066]
[1674078481567,26.31361562,1531.7,1531.6,1.45046525]
[1674078481763,26.31361562,1531.7,1531.6,1.38446525]
[1674078482179,26.31411164,1531.7,1531.6,1.38446525]
[1674078482440,25.631151,1531.7,1531.6,1.38446525]
[1674078485471,26.99695153,1531.7,1531.3,1.45046525]
[1674078485662,8.08621014,1531.6,1531.3,1.38446525]
[1674078485887,22.28240022,1531.5,1531.3,1.38446525]
[1674078486076,22.34840022,1531.5,1531.1,19.05186525]
[1674078486305,22.34840022,1531.5,1531.1,0.066]
[1674078486306,4.46568407,1531.4,1531.1,0.066]
[1674078486518,4.46568407,1531.4,1531.0,17.8675]
[1674078486519,7.02019,1531.3,1531.0,17.8675]
[1674078486730,7.02019,1531.3,1531.2,1.38446525]
[1674078486731,7.08619,1531.3,1531.2,1.38446525]
[1674078487067,13.61658,1531.3,1531.2,1.38446525]
[1674078487450,23.82995022,1531.3,1531.0,1.45046525]
[1674078487659,24.08490624,1531.3,1531.2,1.38446525]
[1674078487885,27.08490624,1531.3,1530.9,0.12919501]
[1674078488103,23.27544022,1531.2,1531.1,1.38446525]
[1674078488454,23.83134022,1531.2,1531.1,1.38446525]
[1674078488604,26.94160126,1531.2,1531.1,1.38446525]
[1674078488818,26.94160126,1531.2,1530.9,0.06319501]
[1674078488819,26.94160126,1531.2,1530.9,1.44766026]
[1674078489126,0.4899,1531.1,1530.9,1.44766026]
[1674078489337,13.06334,1531.0,1530.9,1.44766026]
[1674078489560,13.12934,1531.0,1530.9,1.44766026]
[1674078490233,21.39096602,1531.0,1530.9,1.44766026]
[1674078490720,24.39096602,1531.0,1530.9,1.44766026]
[1674078492073,22.66101,1531.0,1530.9,1.44766026]
[1674078492285,3.066,1531.0,1530.9,1.44766026]
[1674078492648,3.0,1531.0,1530.9,1.44766026]
[1674078493085,9.53167,1531.0,1530.9,1.44766026]
[1674078493231,22.66101,1531.0,1530.9,1.44766026]
[1674078494432,3.066,1531.0,1530.9,1.44766026]
[1674078494752,22.59501,1531.0,1530.9,1.44766026]
[1674078494963,22.66101,1531.0,1530.9,1.44766026]
[1674078496182,22.66101,1531.0,1530.9,0.06319501]
[1674078496183,24.67691,1531.0,1530.9,0.06319501]
[1674078501242,24.67691,1531.0,1530.9,0.06118135]
[1674078502716,27.96865759,1531.0,1530.9,0.06118135]
[1674078507713,28.19865759,1531.0,1530.9,0.06118135]
[1674078510197,29.73365759,1531.0,1530.9,0.06118135]
[1674078510422,28.20765759,1531.0,1530.9,0.06118135]
[1674078519178,27.71775759,1531.0,1530.9,0.06118135]
[1674078519916,24.19601,1531.0,1530.9,0.06118135]
[1674078520326,28.16573781,1531.0,1530.9,0.06118135]
[1674078520491,28.39573781,1531.0,1530.9,0.06118135]
[1674078520700,29.41943474,1531.0,1530.9,0.06118135]
[1674078521394,29.90933474,1531.0,1530.9,0.06118135]
[1674078521606,29.41943474,1531.0,1530.9,0.06118135]
[1674078522449,28.73645452,1531.0,1530.9,0.06118135]
[1674078522802,30.78773728,1531.0,1530.9,1.35e-06]
[1674078523064,22.1313,1530.9,1530.8,0.05997175]
[1674078523223,19.59958825,1530.8,1530.7,0.0660376]
[1674078523437,27.67707575,1530.8,1530.7,0.0660376]
[1674078523649,31.31381748,1530.8,1530.7,0.0660376]